Cogmind - Beta 14 @@@ ROGUE MODE // 2025.03.09 @ 19:52:54 Player: opdo Result: Destroyed by G-47 Trooper with Particle Gun Performance ------------- Evolutions (3) 1500 Regions Visited (8) 1600 Robots Destroyed (81) 405 Value Destroyed (2549) 2549 Prototype IDs (3) 60 Alien Tech Used (0) 0 Bonus (753) 753 TOTAL SCORE: 6867 Bonus ------- Follower Combat Kills 53 Entered Garrisons 200 Entered DSFs 500 Cogmind --------- Core Integrity 0/700 Matter 31/300 Energy 61/100 System Corruption 5% Temperature Cool (28) Movement Core (800) Ox15 Location -7/Garrison Parts ------- > --- POWER (2) -------- (None) > --- PROPULSION (4) --- (None) > --- UTILITY (5) ------ High-capacity Storage Unit Improved Targeting Computer > --- WEAPON (2) ------- Gauss Rifle Gauss Rifle > --- INVENTORY (20) --- Hacking Suite System Shield System Shield Plasma Cannon Plasma Cannon High-powered Shotgun Gauss Rifle Gauss Rifle Heavy Flail Peak State ------------ > --- POWER ------------ Light Nuclear Core > --- PROPULSION ------- Armored Huge Wheel Armored Huge Wheel > --- UTILITY ---------- Improved Heat Sink Improved Heat Sink High-capacity Storage Unit Improved Targeting Computer System Shield > --- WEAPON ----------- Gauss Rifle Gauss Rifle > --- INVENTORY -------- Aluminum Leg VSS Leg Armored Huge Wheel Armored Huge Wheel Hacking Suite System Shield System Shield Plasma Cannon Plasma Cannon High-powered Shotgun Gauss Rifle Gauss Rifle Gauss Rifle Flak Cannon Flak Cannon Advanced Assault Cannon Advanced Assault Cannon Heavy Flail [Rating: 45] Favorites ----------- Power Heavy Ion Engine Engine Heavy Ion Engine Power Core Light Nuclear Core Propulsion Advanced Treads Treads Advanced Treads Leg Aluminum Leg Wheel Armored Huge Wheel Utility High-capacity Storage Unit Device Improved Terrain Scanner Storage High-capacity Storage Unit Processor Improved Targeting Computer Hackware System Shield Protection Medium Armor Plating Weapon Heavy Assault Rifle Ballistic Gun Heavy Assault Rifle Ballistic Cannon Flak Cannon Launcher Rocket Array Build | -11 -10 -10 -9 -9 -8 -7 -7 -7 ------- Run | Yrd Mat Min Mat Min Mat Fac DSF Gar Slots Evolved 6 | . . . 2 . 2 2 . . Power 1 | . . . . . . 1 . . Propulsion 2 | . . . 2 . . . . . Utility 3 | . . . . . 2 1 . . Weapon . | . . . . . . . . . Parts Attached 92 | 7 10 2 18 . 21 2 16 16 Power 9 | 1 . . 4 . 1 1 2 . Engine 6 | 1 . . 4 . 1 . . . Core 3 | . . . . . . 1 2 . Reactor . | . . . . . . . . . Propulsion 33 | 2 3 . 13 . 4 . 6 5 Treads 21 | . 2 . 11 . 4 . 4 . Leg 8 | 2 1 . 2 . . . . 3 Wheel 4 | . . . . . . . 2 2 Hover . | . . . . . . . . . Flight . | . . . . . . . . . Utility 24 | 2 3 . 1 . 10 1 4 3 Device 4 | 1 . . . . 1 . . 2 Storage 4 | 1 3 . . . . . . . Processor 5 | . . . 1 . 2 . 2 . Hackware 1 | . . . . . 1 . . . Protection 10 | . . . . . 6 1 2 1 Artifact . | . . . . . . . . . Weapon 26 | 2 4 2 . . 6 . 4 8 Energy Gun . | . . . . . . . . . Energy Cannon . | . . . . . . . . . Ballistic Gun 19 | 2 4 1 . . 5 . 3 4 Ballistic Cannon 4 | . . . . . . . . 4 Launcher 3 | . . 1 . . 1 . 1 . Special Weapon . | . . . . . . . . . Impact Weapon . | . . . . . . . . . Slashing Weapon . | . . . . . . . . . Piercing Weapon . | . . . . . . . . . Special Melee Weapon . | . . . . . . . . . Unidentified Prototypes 3 | . . . 1 . 2 . . . Parts Lost 36 | . . . . . 2 . 15 19 Power 3 | . . . . . . . 2 1 Propulsion 15 | . . . . . 1 . 7 7 Utility 11 | . . . . . 1 . 5 5 Weapon 7 | . . . . . . . 1 6 Highest Loss Streak 17 | . . . . . 1 . 12 17 To Critical Strikes 1 | . . . . . 1 . . . Average Slot Usage (%) 97 | . 100 100 100 100 99 100 82 65 Engine 10 | . 14 14 11 11 9 7 4 . Treads 30 | . 10 28 40 44 36 30 19 . Leg 3 | . 17 . 3 . . . . . Device 6 | . 14 14 10 . . . . 7 Storage 10 | . 14 14 11 11 9 7 7 7 Processor 4 | . . . . 11 9 7 7 7 Hackware 3 | . . . . . 9 7 7 5 Protection 3 | . . . . . 8 15 9 1 Ballistic Gun 21 | . 28 27 22 22 17 15 13 10 Peak Build Rating 45 | 9 13 13 26 24 36 38 44 45 Average Rating 22 | 5 10 13 16 24 31 37 36 39 On Entrance 22 | . 9 13 13 24 24 34 38 43 Naked Turns . | . . . . . . . . . Heaviest Build 69 | 13 52 52 55 54 65 67 69 61 Greatest Support 89 | 20 40 40 89 88 89 89 89 56 Greatest Overweight (x) 2 | 1 1 1 . . . . 2 1 Average Overweight (x) . | . . 1 . . . . . . Largest Inventory Capacity 20 | 8 20 20 20 20 20 20 20 20 Average Capacity 18 | 7 12 20 20 20 20 20 20 20 Most Carried 20 | 3 20 20 20 20 20 20 20 20 Average Carried 18 | 1 11 19 19 19 19 19 18 18 Final Capacity 20 | 8 20 20 20 20 20 20 20 20 Final Carried 20 | 3 20 20 20 20 20 20 20 9 Class Distribution -------------------- 99% | Mutant Dominant Class ---------------- Mutant | -10/Materials Mutant | -10/Mines Mutant | -9/Materials Mutant | -9/Mines Mutant | -8/Materials Mutant | -7/Factory Mutant | -7/DSF Mutant | -7/Garrison Resources | -11 -10 -10 -9 -9 -8 -7 -7 -7 ----------- Run | Yrd Mat Min Mat Min Mat Fac DSF Gar Matter Collected 2836 | 233 293 455 481 71 757 . 462 84 Remotely . | . . . . . . . . . Salvage Created 2859 | 14 437 65 573 42 1007 . 435 286 Parts 192 | 4 30 3 41 3 71 . 25 15 Haulers Intercepted 8 | . 2 . 3 . 3 . . . Recyclers Shooed 1 | . . . . . 1 . . . Parts Field Recycled . | . . . . . . . . . Retrieved Matter . | . . . . . . . . . Parts Self-Destructed . | . . . . . . . . . Prevented . | . . . . . . . . . Kills | -11 -10 -10 -9 -9 -8 -7 -7 -7 ------- Run | Yrd Mat Min Mat Min Mat Fac DSF Gar Combat Hostiles Destroyed 67 | . 11 2 8 1 25 . 10 10 Guns 54 | . 11 . 8 1 25 . 6 3 Cannons 7 | . . . . . . . . 7 AOE 6 | . . 2 . . . . 4 . Classes Destroyed 12 | 1 4 . 2 . . . 3 2 Tunneler 1 | 1 . . . . . . . . Hauler 8 | . 2 . 3 . 3 . . . Recycler 1 | . . . 1 . . . . . Watcher 4 | . 1 . 1 . 2 . . . Swarmer 29 | . 6 . 2 . 14 . 3 4 Grunt 19 | . 5 2 1 1 7 . . 3 Brawler 1 | . . . . . . . . 1 Duelist 2 | . . . . . . . . 2 Sentry 9 | . . . 5 . 4 . . . Specialist 5 | . . . . . . . 5 . Hunter 1 | . . . . . . . 1 . Programmer 1 | . . . . . . . 1 . Best Kill Streak 8 | 1 4 2 4 1 4 . 5 8 Combat Bots Only 8 | . 3 2 2 1 4 . 5 8 Max Kills in Single Turn 3 | 1 1 1 1 1 1 . 3 1 Gunslinging . | . . . . . . . . . Exploded 2 | . . 1 . . . . 2 . Melee . | . . . . . . . . . Uniques/NPCs Destroyed . | . . . . . . . . . Combat | -11 -10 -10 -9 -9 -8 -7 -7 -7 -------- Run | Yrd Mat Min Mat Min Mat Fac DSF Gar Hostile Shots Fired 725 | . 65 7 59 7 141 . 124 322 Missed 227 | . 27 3 24 3 41 . 31 98 Damage Taken 6971 | . 423 54 437 60 1252 . 1917 2828 Core 1019 | . 67 26 20 . 201 . 226 479 Absorbed by Shields . | . . . . . . . . . Regen/Repaired (Parts) 163 | . . . . . 163 . . . Core Remaining (%) 80 | 100 . 62 . 95 63 . . . Volleys Fired 246 | 3 37 5 51 4 92 . 25 29 Largest 2 | 2 2 2 2 2 2 . 2 2 Hottest 92 | 40 46 46 46 46 50 . 73 92 Shots Fired 490 | 6 74 7 102 11 184 . 49 57 Gun 453 | 6 74 4 102 11 184 . 45 27 Cannon 30 | . . . . . . . . 30 Launcher 7 | . . 3 . . . . 4 . Special . | . . . . . . . . . Kinetic 483 | 6 74 4 102 11 184 . 45 57 Thermal . | . . . . . . . . . Explosive 7 | . . 3 . . . . 4 . Electromagnetic . | . . . . . . . . . Robot Hit Streak 14 | 3 10 2 12 7 13 . 8 14 Robot Miss Streak 6 | 1 2 4 4 2 6 . 2 4 Penetration Max 1 | . . . . . . . . 1 Secondary Targets 4 | . . . . . 4 . . . Max Gunslinging Chain 1 | . . . . . 1 . . . Shots Hit Robots 333 | 4 49 2 65 7 125 . 36 45 Core Hits 172 | 1 24 3 21 3 47 . 33 40 Critical Kills 1 | . . . . . . . . 1 Critical Parts Destroyed 1 | . . . . . . . 1 . Critical Strikes 3 | . . . . . . . 1 2 Destroy 2 | . . . . . . . 1 1 Blast 1 | . . . . . . . . 1 Melee Attacks . | . . . . . . . . . Impact . | . . . . . . . . . Slashing . | . . . . . . . . . Piercing . | . . . . . . . . . Sneak Attacks . | . . . . . . . . . Combat Hostiles . | . . . . . . . . . Follow-up Attacks . | . . . . . . . . . Damage Inflicted 6573 | 38 562 182 1008 114 2091 . 1355 1223 Guns 4830 | 38 561 30 1008 98 2037 . 597 461 Cannons 762 | . . . . . . . . 762 Explosions 896 | . . 138 . . . . 758 . Melee . | . . . . . . . . . Ramming 85 | . 1 14 . 16 54 . . . Kinetic 5592 | 38 561 30 1008 98 2037 . 597 1223 Thermal . | . . . . . . . . . Explosive 896 | . . 138 . . . . 758 . Electromagnetic . | . . . . . . . . . Impact . | . . . . . . . . . Slashing . | . . . . . . . . . Piercing . | . . . . . . . . . Highest Corruption 5 | . . . 3 3 3 . 2 5 Average Corruption 2 | . . . 2 3 1 . 2 2 Corruption Purged . | . . . . . . . . . Corruption Blocked . | . . . . . . . . . Effects 35 | . . . 6 11 15 . 1 2 Message Errors 8 | . . . 1 1 5 . . 1 Matter Fused 8 | . . . 3 2 3 . . . Heat Flow Errors 4 | . . . 1 1 1 . 1 . Energy Discharges 5 | . . . . 3 2 . . . Parts Fused 1 | . . . . . 1 . . . Data Loss (minor) 2 | . . . . . 2 . . . Data Loss (major) 3 | . . . 1 1 . . . 1 Misfires 3 | . . . . 3 . . . . Alerts 1 | . . . . . 1 . . . Overload Shots . | . . . . . . . . . Overflow Damage 5 | . . . . . . . 1 4 Projectiles 4 | . . . . . . . . 4 Explosions 1 | . . . . . . . 1 . Melee . | . . . . . . . . . Knockbacks 28 | . . 1 . 1 . . . 26 Impact 2 | . . 1 . 1 . . . . Kinetic 23 | . . . . . . . . 23 Secondary 3 | . . . . . . . . 3 Self-Inflicted Damage 22 | . . . . . . . 22 . Shots 1 | . . . . . . . 1 . Rammed 6 | . 1 1 . 2 2 . . . Targets Rammed 7 | . 1 1 . 2 3 . . . Kicked . | . . . . . . . . . Crushed 1 | . . . . . 1 . . . Highest Temperature 225 | . 18 4 131 216 225 . 201 125 Average Temperature 28 | . 5 4 34 95 16 . 68 44 Received Heat Transfer 1605 | . 150 33 99 33 441 . 18 831 Siege Activations . | . . . . . . . . . Robots Corrupted . | . . . . . . . . . Combat Hostiles . | . . . . . . . . . Parts Fried . | . . . . . . . . . Impact Corruptions . | . . . . . . . . . Robots Melted . | . . . . . . . . . Combat Hostiles . | . . . . . . . . . Parts Melted . | . . . . . . . . . Heat Transferred . | . . . . . . . . . Parts Sabotaged . | . . . . . . . . . Parts Stolen . | . . . . . . . . . Parts Stripped . | . . . . . . . . . Power Chain Reactions . | . . . . . . . . . Alert | -11 -10 -10 -9 -9 -8 -7 -7 -7 ------- Run | Yrd Mat Min Mat Min Mat Fac DSF Gar Peak Influence 398 | 5 239 98 335 90 345 156 306 398 Initial 229 | . 3 12 . 90 15 156 109 229 Average 118 | 1 100 19 175 66 141 156 198 288 Maximum Alert Level 1 | . 1 . 1 . 1 . 1 1 Low Security (%) 76 | 100 90 100 57 100 68 100 59 . Level 1 23 | . 9 . 42 . 31 . 40 100 Level 2 . | . . . . . . . . . Level 3 . | . . . . . . . . . Level 4 . | . . . . . . . . . Level 5 . | . . . . . . . . . High Security . | . . . . . . . . . Max Security . | . . . . . . . . . Sterilizations 1 | . . . . . . . 1 . Squads Dispatched 4 | . 1 . . . . . 3 . Investigation . | . . . . . . . . . Extermination . | . . . . . . . . . Reinforcement 4 | . 1 . . . . . 3 . Assault . | . . . . . . . . . Garrison . | . . . . . . . . . Intercept . | . . . . . . . . . Searches Triggered . | . . . . . . . . . Construction Impeded . | . . . . . . . . . Haulers Reinforced . | . . . . . . . . . Active Scanning Responses . | . . . . . . . . . Cargo Convoy Interrupts . | . . . . . . . . . Stealth | -11 -10 -10 -9 -9 -8 -7 -7 -7 --------- Run | Yrd Mat Min Mat Min Mat Fac DSF Gar Distress Signals 5 | . 2 . 1 . 2 . . . Communications Jammed . | . . . . . . . . . Distress Signals . | . . . . . . . . . Times Spotted 118 | . 17 2 17 3 46 . 12 21 Peak Tracking Total 14 | . 6 2 5 3 7 . 5 14 Tactical Retreats 15 | . 1 . 3 . 6 . 4 1 Traps | -11 -10 -10 -9 -9 -8 -7 -7 -7 ------- Run | Yrd Mat Min Mat Min Mat Fac DSF Gar Traps Triggered 3 | . . . 3 . . . . . Indirectly . | . . . . . . . . . Trap Hack Attempts . | . . . . . . . . . Triggered . | . . . . . . . . . Disarmed . | . . . . . . . . . Reprogrammed . | . . . . . . . . . Reused 2 | . . . . 1 . . 1 . Traps Extracted . | . . . . . . . . . Installed 3 | . . . . 1 . . 2 . Triggered 2 | . . . . 1 . . 1 . Most Traps Carried 3 | . . 3 3 3 2 2 2 . Machines | -11 -10 -10 -9 -9 -8 -7 -7 -7 ---------- Run | Yrd Mat Min Mat Min Mat Fac DSF Gar Machines Disabled 3 | . . . 2 . . . . 1 Max in Single Turn 1 | . . . 1 . . . . 1 Garrison Relay 1 | . . . . . . . . 1 Machines Repaired . | . . . . . . . . . Machines Dismantled . | . . . . . . . . . Machines Sabotaged . | . . . . . . . . . Overloaded Fab Kills . | . . . . . . . . . Hacking | -11 -10 -10 -9 -9 -8 -7 -7 -7 --------- Run | Yrd Mat Min Mat Min Mat Fac DSF Gar Machines Accessed 20 | . 5 . 4 . 9 1 . 1 Terminals 16 | . 4 . 3 . 7 1 . 1 Fabricators . | . . . . . . . . . Repair Stations 1 | . . . . . 1 . . . Recycling Units 3 | . 1 . 1 . 1 . . . Scanalyzers . | . . . . . . . . . Garrison Access . | . . . . . . . . . Total Hacks 47 | . 12 . 9 . 22 1 . 3 Successful 26 | . 6 . 4 . 14 1 . 1 Failed 21 | . 6 . 5 . 8 . . 2 Catastrophic 9 | . 2 . 2 . 5 . . . Database Lockouts . | . . . . . . . . . Manual 30 | . 7 . 8 . 15 . . . Terminals 39 | . 9 . 8 . 18 1 . 3 Fabricators . | . . . . . . . . . Repair Stations 2 | . . . . . 2 . . . Recycling Units 6 | . 3 . 1 . 2 . . . Scanalyzers . | . . . . . . . . . Garrison Access . | . . . . . . . . . Terminal Hacks 15 | . 3 . 2 . 8 1 . 1 Robot Analysis 3 | . 2 . 1 . . . . . Open DSF 1 | . . . . . . 1 . . Branch Access Points 1 | . . . . . 1 . . . Emergency Access Points 1 | . . . . . . . . 1 Terminal Index 1 | . . . . . 1 . . . Alert Level 2 | . . . . . 2 . . . Unreport Threat 1 | . . . . . 1 . . . Locate Traps 1 | . . . . . 1 . . . Security Status 1 | . . . . . 1 . . . Patrol Status 3 | . 1 . 1 . 1 . . . Fabricator Hacks . | . . . . . . . . . Repair Station Hacks 2 | . . . . . 2 . . . Scan Component 1 | . . . . . 1 . . . Repair 1 | . . . . . 1 . . . Recycling Unit Hacks 5 | . 2 . 1 . 2 . . . Report Inventory 4 | . 1 . 1 . 2 . . . Retrieve Components 1 | . 1 . . . . . . . Scanalyzer . | . . . . . . . . . Garrison Access Hacks . | . . . . . . . . . Unauthorized Hacks 4 | . 1 . 1 . 2 . . . Terminals 4 | . 1 . 1 . 2 . . . Botnet 4 | . 1 . 1 . 2 . . . Fabricators . | . . . . . . . . . Repair Stations . | . . . . . . . . . Recycling Units . | . . . . . . . . . Scanalyzers . | . . . . . . . . . Garrison Access . | . . . . . . . . . Data Cores Recovered . | . . . . . . . . . Used . | . . . . . . . . . Hacking Detections 15 | . 4 . 3 . 7 . . 1 Full Trace Events . | . . . . . . . . . Feedback Events . | . . . . . . . . . Feedback Blocked . | . . . . . . . . . Robot Schematics Acquired . | . . . . . . . . . Robots Built . | . . . . . . . . . Authchips . | . . . . . . . . . Time . | . . . . . . . . . Total Robot Build Rating . | . . . . . . . . . Part Schematics Acquired . | . . . . . . . . . Parts Built . | . . . . . . . . . Authchips . | . . . . . . . . . Time . | . . . . . . . . . Total Part Build Rating . | . . . . . . . . . Parts Repaired 1 | . . . . . 1 . . . Time 38 | . . . . . 38 . . . Parts Recycled . | . . . . . . . . . Recycled Matter . | . . . . . . . . . Retrieved Matter . | . . . . . . . . . Retrieved Components 10 | . 10 . . . . . . . Parts Scanalyzed . | . . . . . . . . . Part Schematics Acquired . | . . . . . . . . . Parts Damaged . | . . . . . . . . . Bothacking | -11 -10 -10 -9 -9 -8 -7 -7 -7 ------------ Run | Yrd Mat Min Mat Min Mat Fac DSF Gar Used RIF Installer . | . . . . . . . . . Robots Hacked . | . . . . . . . . . Non-combat . | . . . . . . . . . Combat . | . . . . . . . . . Robot Hacks Applied . | . . . . . . . . . Relay Couplers Released 4 | . . . . . . . . 4 Machine Destruction 4 | . . . . . . . . 4 Fabnet Peak Effective % . | . . . . . . . . . Robots Rewired . | . . . . . . . . . Allies Hacked . | . . . . . . . . . Hacks Repelled . | . . . . . . . . . Allies | -11 -10 -10 -9 -9 -8 -7 -7 -7 -------- Run | Yrd Mat Min Mat Min Mat Fac DSF Gar Total Allies 2 | . . 2 . . . . . . Largest Group 2 | . . 2 2 . . . . . Highest-Rated Group 42 | . . 42 42 . . . . . Highest-Rated Ally 31 | . . 31 31 . . . . . Total Orders . | . . . . . . . . . Ally Attacks 20 | . . . 20 . . . . . Total Damage 253 | . . . 253 . . . . . Kills 7 | . . . 7 . . . . . Allies Corrupted . | . . . . . . . . . Allies Melted . | . . . . . . . . . Intel | -11 -10 -10 -9 -9 -8 -7 -7 -7 ------- Run | Yrd Mat Min Mat Min Mat Fac DSF Gar Robot Analysis Total 3 | . 2 . 1 . . . . . Derelict Logs Recovered 2 | . . 2 . . . . . . Drone Launches . | . . . . . . . . . Drone Recoveries . | . . . . . . . . . Exploration | -11 -10 -10 -9 -9 -8 -7 -7 -7 ------------- Run | Yrd Mat Min Mat Min Mat Fac DSF Gar Turns Passed 6459 | 82 918 1143 1025 667 1985 46 368 225 Spaces Moved 3378 | 48 510 467 503 449 1073 29 185 114 Core 4 | 4 . . . . . . . . Treads 2774 | . 134 467 503 449 1073 29 119 . Legs 420 | 44 376 . . . . . . . Wheels 180 | . . . . . . . 66 114 Hover . | . . . . . . . . . Flight . | . . . . . . . . . Fastest Speed 50 | 50 120 240 145 145 145 148 100 100 Average Speed 158 | 127 146 240 157 145 145 148 138 104 Slowest Speed 320 | 190 240 240 160 145 148 148 320 115 Overloaded Moves . | . . . . . . . . . Propulsion Burnouts . | . . . . . . . . . Robots Hopped . | . . . . . . . . . Cave-ins Triggered . | . . . . . . . . . Exploration Rate (%) 55 | 4 68 97 57 91 71 1 87 21 Regions Visited 8 Branch Regions 2 Pre-discovered Areas 1 | . . 1 . . . . . . Known Exits Taken 2 | . . . . . 1 1 . . Unknown Exits Taken 5 | 1 1 1 1 1 . . . . Scrap Searched 3 | . . 1 . 2 . . . . Spaces Dug . | . . . . . . . . . Terrain Destroyed 74 | . . 32 . . . . 41 1 Melee . | . . . . . . . . . Projectile 1 | . . . . . . . . 1 AOE 73 | . . 32 . . . . 41 . Terrain Rammed . | . . . . . . . . . Walls Destroyed . | . . . . . . . . . Machines Disabled . | . . . . . . . . . Actions | -11 -10 -10 -9 -9 -8 -7 -7 -7 --------- Run | Yrd Mat Min Mat Min Mat Fac DSF Gar Total 4070 | 60 617 483 659 457 1349 32 251 162 Wait 172 | . 21 1 32 . 115 . 3 . Move 3370 | 47 509 466 502 448 1072 28 184 114 Hop . | . . . . . . . . . Pick Up 89 | 3 24 4 21 1 20 2 12 2 Fast Attach 26 | 7 . . 2 . 7 . 6 4 Attach 26 | . . . 2 . 5 2 7 10 Detach . | . . . . . . . . . Swap 40 | . 10 2 14 . 9 . 3 2 Drop 90 | . 15 4 34 1 26 . 9 1 Fire 246 | 3 37 5 51 4 92 . 25 29 Melee . | . . . . . . . . . Ram . | . . . . . . . . . Kick . | . . . . . . . . . Crush 7 | . 1 1 . 2 3 . . . Escape Stasis . | . . . . . . . . . Rewire 1 | . . . 1 . . . . . Trap 3 | . . . . 1 . . 2 . Miscellaneous . | . . . . . . . . . Route ------- -11/Scrapyard -10/Materials (discovered 4 exits: *Mat x3 / [*Min]) -10/Mines (discovered 2 exits: *Mat x2) -9/Materials (discovered 4 exits: *Mat / [*Min] / [*Sto x2]) -9/Mines (discovered 3 exits: *Mat / [*Exi] / [*Zio]) -8/Materials (discovered 2 exits: *Fac x2) -7/Factory -7/DSF -7/Garrison History --------- Turn | Location | Event 15 | -11/Scrapyard | Discovered new exit (range 16) 83 | -11/Scrapyard | Entered Materials 306 | -10/Materials | Discovered new exit (range 11) 312 | -10/Materials | Build established: Mutant 508 | -10/Materials | Discovered new exit (range 11) 637 | -10/Materials | Discovered new exit (range 10) 974 | -10/Materials | Discovered new exit (range 11) 1001 | -10/Materials | Entered Mines 1040 | -10/Mines | Discovered new exit (range 10) 1570 | -10/Mines | Found a hidden stash of uninstalled traps 1685 | -10/Mines | Learned Materials emergency access door positions 1922 | -10/Mines | Discovered new exit (range 6) 1958 | -10/Mines | Learned location of Zion (-7) 2144 | -10/Mines | Entered Materials 2144 | -9/Materials | Accompanied by 2 allies 2144 | -9/Materials | Evolved 2 slots: Propulsion x2 2149 | -9/Materials | Led the pair of lost Derelicts to an unsafe place 2292 | -9/Materials | Discovered new exit (range 11) 2502 | -9/Materials | Discovered new exit (range 7) 2601 | -9/Materials | Discovered new exit (range 16) 2798 | -9/Materials | Discovered new exit (range 4) 3169 | -9/Materials | Entered Mines 3239 | -9/Mines | Discovered new exit (range 10) 3313 | -9/Mines | A Derelict revealed a hidden shortcut to a safe place 3570 | -9/Mines | Deemed a non-threat by the Exiles lab entrance 3570 | -9/Mines | Discovered new exit (range 5) 3836 | -9/Mines | Entered Materials 3836 | -8/Materials | Evolved 2 slots: Utility x2 4371 | -8/Materials | Discovered new exit (range 3) 4610 | -8/Materials | Repaired Adv. Treads 4717 | -8/Materials | Found Prototype Launcher 4717 | -8/Materials | Identified Rocket Array 4728 | -8/Materials | Found Faulty Rocket Array 4731 | -8/Materials | Found Rocket Array 5473 | -8/Materials | Identified exit to Factory 5561 | -8/Materials | Discovered exit to Factory (range 5) 5821 | -8/Materials | Entered Factory 5821 | -7/Factory | Evolved 2 slots: Power x1, Utility x1 5826 | -7/Factory | Identified exit to DSF 5867 | -7/Factory | Entered DSF 5935 | -7/DSF | Additional patrols routed to DSF 6103 | -7/DSF | Discovered new exit (range 15) 6155 | -7/DSF | Sterilization system engaged 6159 | -7/DSF | Lost 12 parts (1p7n3u1w) 6175 | -7/DSF | Ambient heat levels rising (+10) 6190 | -7/DSF | Ambient heat levels rising (+10) 6205 | -7/DSF | Ambient heat levels rising (+10) 6220 | -7/DSF | Ambient heat levels rising (+10) 6235 | -7/DSF | Ambient heat levels rising (+10) 6235 | -7/DSF | Entered Garrison 6269 | -7/Garrison | Triggered checkpoint 6335 | -7/Garrison | Triggered checkpoint 6349 | -7/Garrison | Garrison Relay disabled 6365 | -7/Garrison | Triggered checkpoint 6385 | -7/Garrison | Triggered checkpoint 6426 | -7/Garrison | Core integrity fell below 50% 6449 | -7/Garrison | Core integrity fell below 20% 6460 | -7/Garrison | Destroyed by G-47 Trooper with Particle Gun Last Messages --------------- 06432_ Flak Cannon destroyed. 06432_ Adv. Assault Cannon destroyed. 06435_ S-27 Virus knocked back. 06435_ Slug penetrates Y-54 Guardian. 06435_ Arm. Huge Wheel destroyed. 06438_ Slug penetrates S-27 Virus. 06438_ S-27 Virus destroyed. 06440_ Arm. Huge Wheel destroyed. 06440_ G-47 Trooper destroyed. 06442_ Gauss Rifle destroyed. 06443_ VSS Leg destroyed. 06443_ Acquired Aluminum Leg. 06448_ Destroyed VTOL Module. 06448_ S-27 Virus destroyed. 06449_ Adv. Assault Cannon destroyed. 06452_ AWDJCPIFBP=MTW |,|Y K9 0EG 06455_ Slug penetrates Y-54 Guardian. 06455_ Aluminum Leg destroyed. 06458_ Slug penetrates Y-54 Guardian. 06458_ Aluminum Leg destroyed. Map ----- +----------------------------------------------------+ | ?????????????????????????????????????????????????? | | ?????????????????????????????????????????????????? | | ?????????????????????????????????????????????????? | | ?????????????????????????+??+????????????????????? | | ?????????????????????????????????????????????????? | | ??????????????????????????????????????+??????????? | | ?????+??????????????????????+????????????????????? | | ?????????????????????????????????????????????????? | | ?????????????????????????????????????????????????? | | ?????????????????????????????????????????????????? | | ???????????????????????+?????????+?????+?????????? | | ?????????????????????????????????????????????????? | | ?????????????????????????????????????????????????? | | ?????????????????????????????????????????????????? | | ?????????????????????????????????????????????????? | | ?????????+???? ???????+????????????????????????? | | ?????????????? ???????????????????????????????? | | ??????????????# ??????????????????????????????? | | ??????????????# #?????????????????????????????? | | ??????????????? ????????????????????????????? | | ???????????????? ????????????????????????????? | | ?????????????????? =???????????????????????????? | | ???????+??????????? %[??????????????????????????? | | ??????????????#?????# ?????????????????????????? | | ?????????????## ## %=########################## | | ?????????? =%[%Y@ s% | | ?????????+ Y!%!=Y*%=[Y* ########## ### | | ?????????? ^sg%####+## #????????# #?# | | ??????????? ## ## =#?????## #????????##+##?# | | ??????????????# ???# ???????# #??????????????# | | ????????????????????# ????????# #??????????????# | | ????????????????????#?????????+ +??????????????# | | ??????????+???????????????????# #??????????????#! | | ???????????????????????+??????# #??????????????# | | ??????????????????????????????# ##???????##+##?# | | ????????????????????# ######## T#???????# #?# | | ????????????????????# ########## ### | | ?????+??????????????# | | ????????????????????##+######## ################# | | ??????????????????????????????# #???????????????? | | ?????+?????+??????????????????# #???????????????? | | ??????????????????????????????# #???????????????? | | ??????????????????????????????# #???????????????? | | ??????????????????????????????# #???????????????? | | ??+???????????????????????????# ##############??? | | ?????????????????????????+????+ #??? | | ??????????????????????????????# #??? | | ??????????????????????????????# ########## #??? | | ??????????????????????????????# #????????# #??? | | ??????????????????############# ##???????#####??? | +----------------------------------------------------+ Best States ------------- Heat Dissipation 62 Energy Generation 23 Energy Capacity 340 Matter Stores 300 Matter Capacity 300 Sight Range 16 Terrain Scan Range 16 Terrain Scan Density 10 Armor Coverage 300 Evasion (%) 55 Targeting Accuracy 12 Recoil Reduction 4 Defensive Hacking 10 Item Schematics ----------------- None Robot Schematics ------------------ None Fabricated ------------ Nothing Alien Tech Used ----------------- None Achievements -------------- None Challenges ------------ None Game ------ Seed ModifiedCoilInterpreter Manual? 0 Play Time 00:43:57 Cumulative 77.8 hours Start 2025.03.09 @ 18:59:06 End 2025.03.09 @ 19:52:54 Sessions 1 Manual Loads 0 Difficulty Rogue Special Mode None Game No. 219 Rogue 217 Adventurer 2 Explorer 0 Win Type - Total 1 Types 1/0/0/0/0/0/0/0/0 Lore% 68 Gallery% 61 Achievement% 46 Wizard Run 0 Options --------- Layout 2 ASCII 0 Keyboard 0 Movement Arrows Keybinds 0 Fullscreen 2 Font 24/Smallcaps Map View 50x44 Zoom Use 0% Tactical HUD 1 Map Filters NONE Filters NONE Steam 1 RUN: 3e006174-09bc-40bd-b61a-39d5bb6515d2